Cogmind - Beta 15 @@@ ROGUE MODE // 2025.06.23 @ 13:28:43 Player: LightKnight Result: Destroyed by Striker with Plasma Lance Performance ------------- Evolutions (8) 4000 Regions Visited (19) 3800 Robots Destroyed (143) 715 Value Destroyed (6727) 6727 Prototype IDs (135) 2700 Alien Tech Used (1) 200 Bonus (11734) 11734 TOTAL SCORE: 29876 Bonus ------- Triggered High Security 500 High Alert Combat Kills 1774 Follower Combat Kills 4702 Entered DSFs 500 Network Hubs Disabled 200 Registered with UFD 300 Met Optimus in HQ 500 Built Enhanced Grunts 300 Met R17 at Cetus 500 Met R17 at Research 2000 Met Optimus at Protoforge 1000 Friendly Fire -542 Cogmind --------- Core Integrity 0/1450 Matter 288/300 Energy 79/100 System Corruption 8% Temperature Cool (0) Movement Core (50) Location -2/Protoforge Parts ------- > --- POWER (2) -------- (None) > --- PROPULSION (6) --- (None) > --- UTILITY (11) ----- Concept Phasing Heat Sink Advanced Visual Processing Unit Improved System Shield > --- WEAPON (4) ------- (None) > --- INVENTORY (5) ---- Light Particle Reactor Hybrid Graviton Reactor Hypervelocity EM Gauss Rifle Fusion Bomb Launcher Enhanced Force Lance Peak State ------------ > --- POWER ------------ Light Particle Reactor Micro Antimatter Reactor > --- PROPULSION ------- Electron Diverter Electron Diverter Electron Diverter Improved Diametric Drive Improved Diametric Drive Cooled Impulse Thruster > --- UTILITY ---------- Concept Phasing Heat Sink Active Sensor Suite Cloaking Device Hacking Suite Improved Hacking Suite Improved Hacking Suite Improved System Shield Improved System Shield > --- WEAPON ----------- Concept XC Strikerail Thunder Hammer Plasma Lance Enhanced Force Lance > --- INVENTORY -------- Hybrid Graviton Reactor Improved Q-thruster Transdimensional Reconstructor Hypervelocity EM Gauss Rifle Fusion Bomb Launcher [Rating: 175] Favorites ----------- Power Subdweller Power Source Engine Subdweller Power Source Power Core Light Nuclear Core Reactor Quantum Reactor Propulsion Light Treads Treads Light Treads Leg Multireflex Exoskeleton Flight Unit Q-thruster Utility Large Storage Unit Device Advanced Heat Sink Storage Large Storage Unit Processor Enhanced Optical Array Hackware Improved Hacking Suite Protection Centrium Medium Armor Plating Weapon Advanced KE Penetrator Energy Gun Advanced Variable Charge Gun Energy Cannon Subdweller Beam Cannon Ballistic Gun Advanced KE Penetrator Ballistic Cannon Heavy Gauss Cannon Launcher Grenade Launcher Special Weapon CPS Tube Impact Weapon Thunder Hammer Slashing Weapon Phasing Sabre Piercing Weapon Plasma Lance Special Melee Weapon Datajack Build | -11 -10 -10 -9 -9 -6 -6 -6 -6 -6 -5 -5 -5 -5 -4 -3 -3 -2 -2 -2 ------- Run | Yrd Mat Sub Rec Scr Fac Ext Cet Arc Hub Fac Was Fac DSF Fac Res Tes Res Qua Frg Slots Evolved 16 | . . . . . 8 . . . . 2 . . . 2 2 . 2 . . Power 1 | . . . . . . . . . . 1 . . . . . . . . . Propulsion 4 | . . . . . 2 . . . . . . . . . 2 . . . . Utility 9 | . . . . . 4 . . . . 1 . . . 2 . . 2 . . Weapon 2 | . . . . . 2 . . . . . . . . . . . . . . Parts Attached 200 | 1 4 15 2 9 17 13 20 . 3 40 1 . 10 11 27 6 1 3 17 Power 28 | . 2 2 . 2 2 4 1 . . 7 . . . 4 3 . . . 1 Engine 11 | . 2 2 . 2 2 . . . . 2 . . . 1 . . . . . Core 9 | . . . . . . 3 . . . 4 . . . 2 . . . . . Reactor 8 | . . . . . . 1 1 . . 1 . . . 1 3 . . . 1 Propulsion 37 | . . 2 1 1 5 . 4 . . 7 . . 2 2 7 2 . 3 1 Treads 14 | . . 2 1 1 3 . 2 . . 3 . . 2 . . . . . . Leg 4 | . . . . . 2 . 2 . . . . . . . . . . . . Wheel . | . . . . . . . . . . . . . . . . . . . . Hover . | . . . . . . . . . . . . . . . . . . . . Flight 19 | . . . . . . . . . . 4 . . . 2 7 2 . 3 1 Utility 81 | . . 4 1 3 7 4 7 . 1 16 1 . 3 5 12 3 1 . 13 Device 38 | . . 1 . . 5 2 3 . . 10 . . 1 3 4 3 . . 6 Storage 8 | . . . 1 1 . . 1 . . 2 . . . 1 . . . . 2 Processor 10 | . . . . . 1 . . . . 3 . . . . 2 . . . 4 Hackware 11 | . . . . . . . . . 1 1 . . 2 1 5 . 1 . . Protection 14 | . . 3 . 2 1 2 3 . . . 1 . . . 1 . . . 1 Artifact . | . . . . . . . . . . . . . . . . . . . . Weapon 54 | 1 2 7 . 3 3 5 8 . 2 10 . . 5 . 5 1 . . 2 Energy Gun 14 | 1 . . . 1 1 . 3 . 1 5 . . . . . 1 . . 1 Energy Cannon 7 | . . 2 . . 1 1 1 . . 1 . . . . 1 . . . . Ballistic Gun 11 | . 1 2 . 1 . . 3 . 1 2 . . . . . . . . 1 Ballistic Cannon 5 | . . . . . 1 . . . . . . . 4 . . . . . . Launcher 5 | . 1 2 . . . 1 . . . 1 . . . . . . . . . Special Weapon 1 | . . . . . . . 1 . . . . . . . . . . . . Impact Weapon 2 | . . . . . . 1 . . . . . . . . 1 . . . . Slashing Weapon 4 | . . 1 . . . 2 . . . 1 . . . . . . . . . Piercing Weapon 4 | . . . . . . . . . . . . . 1 . 3 . . . . Special Melee Weapon 1 | . . . . 1 . . . . . . . . . . . . . . . Unidentified Prototypes 38 | . . . . . 1 . 6 . . 5 . . . . 5 5 . . 16 Corrupted Parts 2 | . . . . . . . . . 2 . . . . . . . . . . System Corruption 12 | . . . . . . . . . 12 . . . . . . . . . . Parts Lost 71 | . . 1 . . 14 6 3 . 3 31 . . . 1 . . . . 12 Power 14 | . . . . . 2 2 1 . . 8 . . . 1 . . . . . Propulsion 13 | . . . . . 4 . . . . 4 . . . . . . . . 5 Utility 26 | . . . . . 4 1 1 . 2 12 . . . . . . . . 6 Weapon 18 | . . 1 . . 4 3 1 . 1 7 . . . . . . . . 1 Highest Loss Streak 14 | . . 1 . . 8 3 3 . 2 14 . . . 1 . . . . 8 To Critical Strikes 2 | . . . . . . . . . . 1 . . . . . . . . 1 Average Backups 8 | 6 7 7 7 10 9 12 11 13 13 10 1 1 3 4 4 4 3 4 5 Power 1 | 1 1 1 1 1 . . 1 2 2 . . . . . . 1 1 1 1 Propulsion . | 4 3 . . 1 1 2 1 1 1 1 . . . . . . . 1 . Utility 2 | . . . 3 4 4 5 4 6 6 3 . . . 1 1 1 . . . Weapon 3 | 1 2 5 3 2 2 2 3 4 4 5 1 1 2 1 2 1 2 2 2 Tool/Special . | . . . . . . . . . . . . . . . . . . . . Unused Backups 42 | . 9 4 1 3 . 4 7 . . 7 . . 2 3 . 1 . . 1 Power 5 | . 2 . 1 . . . 1 . . 1 . . . . . . . . . Propulsion 13 | . 4 1 . . . 3 4 . . . . . . 1 . . . . . Utility 8 | . 1 . . 1 . 1 1 . . 3 . . . . . 1 . . . Weapon 16 | . 2 3 . 2 . . 1 . . 3 . . 2 2 . . . . 1 Tool/Special . | . . . . . . . . . . . . . . . . . . . . Average Slot Usage (%) 80 | . 85 99 96 75 79 66 83 86 85 65 45 52 68 70 72 87 84 86 72 Engine 8 | . 14 14 14 11 11 . . . . . 7 11 11 6 . . . . . Reactor 1 | . . . . . . . 6 6 6 5 . . . . 7 9 8 8 7 Treads 16 | . . 27 28 26 14 . 10 13 13 7 . . 7 8 . . . . . Leg 1 | . 28 . . . 3 12 3 . . . . . . . . . . . . Flight 2 | . . . . . . . . . . 3 11 11 3 1 26 28 26 26 20 Device 8 | . . 7 . . 13 15 19 20 15 17 5 5 6 9 11 14 17 17 14 Storage 8 | . 14 14 14 13 5 6 6 6 6 4 . . . 1 . . . . . Processor 1 | . . . . . 4 . . . . 2 11 11 11 8 2 . . . 1 Hackware 2 | . . . . . . . . . 3 2 . . 9 10 10 19 19 21 18 Protection 5 | . . 5 10 5 4 4 12 13 13 2 2 5 3 4 1 . . . . Energy Gun 4 | . 16 4 . 5 7 . 2 6 6 9 . . . . . . . . . Energy Cannon 3 | . . 7 14 1 4 . 5 . . . . . . . . . . . . Ballistic Gun 7 | . 10 13 14 6 2 . 15 20 19 3 . . . . . . . . . Ballistic Cannon 1 | . . . . . 4 . . . . . . . 8 15 . . . . . Peak Build Rating 175 | 6 6 15 15 20 82 86 124 124 125 139 37 36 87 104 155 164 159 162 175 Average Rating 51 | 6 6 10 13 12 62 68 111 124 123 92 34 36 62 80 122 153 157 159 142 On Entrance 69 | 6 6 6 15 11 18 45 86 124 124 106 31 36 33 87 35 149 150 159 162 Naked Turns 174 | . . . . 146 . . . . . 20 . . . 8 . . . . . Heaviest Build 160 | 12 13 26 37 42 80 77 85 82 82 158 15 15 65 160 44 46 39 39 45 Greatest Support 160 | 20 20 40 40 40 83 72 160 160 160 160 14 14 140 140 46 46 47 48 48 Greatest Overweight (x) 3 | . . . . 1 1 1 . . . 2 1 1 . 1 . . . . 3 Average Overweight (x) . | . . . . . . . . . . . . . . . . . . . . Largest Inventory Capacity 25 | 8 8 8 15 15 15 15 15 15 15 25 5 5 5 25 5 5 5 5 5 Average Capacity 11 | 8 8 8 9 14 15 15 15 15 15 14 5 5 5 12 5 5 5 5 5 Most Carried 22 | 6 8 8 9 15 15 15 15 15 15 22 3 2 5 10 5 5 5 5 5 Average Carried 9 | 6 7 7 8 11 11 13 13 15 14 12 2 2 4 5 4 4 4 4 4 Final Capacity 15 | 8 8 8 15 15 15 15 15 15 15 5 5 5 5 5 5 5 5 5 5 Final Carried 15 | 6 8 8 9 15 13 15 15 15 14 3 2 3 5 2 5 5 5 5 5 Class Distribution -------------------- 29% | Mutant 28% | Commander-Mutant 14% | Scavenger-Tank 4% | Hacker-Ninja 4% | Tank 3% | Hacker-Scout Dominant Class ---------------- Mutant | -10/Materials Mutant | -10/Subcaves Commander-Mutant | -9/Recycling Commander-Mutant | -9/Scraptown Derelict-Tank | -6/Factory Scavenger-Gladiator | -6/Extension Scavenger-Tank | -6/Cetus Scavenger-Tank | -6/Archives Scavenger-Tank | -6/Hub_04(d) Scavenger-Tank | -5/Factory Assassin | -5/Waste Assassin | -5/Factory Tank | -5/DSF Tank | -4/Factory Hacker-Scout | -3/Research Hacker-Scout | -3/Testing Hacker-Ninja | -2/Research Hacker-Ninja | -2/Quarantine Hacker-Ninja | -2/Protoforge Resources | -11 -10 -10 -9 -9 -6 -6 -6 -6 -6 -5 -5 -5 -5 -4 -3 -3 -2 -2 -2 ----------- Run | Yrd Mat Sub Rec Scr Fac Ext Cet Arc Hub Fac Was Fac DSF Fac Res Tes Res Qua Frg Matter Collected 5051 | 200 95 278 39 110 583 564 333 106 294 540 142 . 122 920 300 . 4 . 421 Remotely . | . . . . . . . . . . . . . . . . . . . . Salvage Created 6697 | . 49 332 34 . 779 1202 269 . 993 1300 . . 273 959 231 . . . 276 Parts 323 | . 10 19 1 . 35 57 13 . 39 69 . . 2 48 11 . . . 19 Haulers Intercepted 2 | . . . . . . . . . 1 1 . . . . . . . . . Recyclers Shooed 8 | . . . . . 8 . . . . . . . . . . . . . . Parts Field Recycled . | . . . . . . . . . . . . . . . . . . . . Retrieved Matter . | . . . . . . . . . . . . . . . . . . . . Parts Self-Destructed 7 | . . 7 . . . . . . . . . . . . . . . . . Prevented . | . . . . . . . . . . . . . . . . . . . . Kills | -11 -10 -10 -9 -9 -6 -6 -6 -6 -6 -5 -5 -5 -5 -4 -3 -3 -2 -2 -2 ------- Run | Yrd Mat Sub Rec Scr Fac Ext Cet Arc Hub Fac Was Fac DSF Fac Res Tes Res Qua Frg Combat Hostiles Destroyed 104 | . 3 10 1 . 18 18 4 . 9 20 . . . 18 . . . . 3 Melee 16 | . . . . . . 14 . . 1 . . . . . . . . . 1 Guns 41 | . 1 4 1 . 10 . 2 . 6 15 . . . . . . . . 2 Cannons 32 | . . 4 . . 8 . 2 . . . . . . 18 . . . . . AOE 14 | . 2 2 . . . 3 . . 2 5 . . . . . . . . . Classes Destroyed 21 | . 2 2 1 . 5 4 . . 2 2 . . . 1 . . . . 2 Worker 6 | . . . . . 1 . . . 1 3 . . . . 1 . . . . Builder 5 | . . . . . 1 . . . 1 1 . . . 1 . . . . 1 Tunneler 2 | . . . . . . . . . . 1 . . . 1 . . . . . Hauler 2 | . . . . . . . . . 1 1 . . . . . . . . . Recycler 1 | . . . . . . 1 . . . . . . . . . . . . . Mechanic 1 | . . . . . . 1 . . . . . . . . . . . . . Operator 4 | . . . . . . 1 . . 1 1 . . . . . . . . 1 Drone 1 | . . . . . . . . . . . . . . . . . . . 1 Watcher 13 | . 2 . . . . . 1 . 3 . . . . . 5 . . . 2 Swarmer 16 | . 3 . . . 1 4 . . . 5 . . . 3 . . . . . Cutter 1 | . . . . . . . . . 1 . . . . . . . . . . Grunt 41 | . . . . . 9 8 . . 7 4 . . . 12 . . . . 1 Brawler 1 | . . . . . 1 . . . . . . . . . . . . . . Duelist 4 | . . . . . . . . . . 3 . . . 1 . . . . . Sentry 8 | . . 1 . . 3 1 . . . 2 . . . 1 . . . . . Specialist 1 | . . . . . . . . . . . . . . . . . . . 1 Hunter 4 | . . . . . 2 . . . . 2 . . . . . . . . . Programmer 10 | . . . 1 . 2 1 . . 1 4 . . . 1 . . . . . Behemoth 2 | . . . . . . 2 . . . . . . . . . . . . . Cetus Guard 4 | . . . . . . . 4 . . . . . . . . . . . . Enhanced Grunt 3 | . . . . . . . . . 3 . . . . . . . . . . Subdweller 9 | . . 9 . . . . . . . . . . . . . . . . . Savage 2 | . . . . . . 2 . . . . . . . . . . . . . Martyr 2 | . . . . . . . . . . . . . . 2 . . . . . Best Kill Streak 8 | . 4 2 1 . 5 4 2 . 6 4 . . . 8 3 . . . 1 Combat Bots Only 8 | . 3 2 1 . 5 4 2 . 3 4 . . . 8 . . . . 1 Max Kills in Single Turn 6 | . 1 2 1 . 2 2 1 . 6 2 . . . 2 1 . . . 1 Gunslinging . | . . . . . . . . . . . . . . . . . . . . Exploded 2 | . 1 2 . . . 2 . . 2 2 . . . . . . . . . Melee 1 | . . . . . . 1 . . 1 . . . . . . . . . 1 Uniques/NPCs Destroyed . | . . . . . . . . . . . . . . . . . . . . Combat | -11 -10 -10 -9 -9 -6 -6 -6 -6 -6 -5 -5 -5 -5 -4 -3 -3 -2 -2 -2 -------- Run | Yrd Mat Sub Rec Scr Fac Ext Cet Arc Hub Fac Was Fac DSF Fac Res Tes Res Qua Frg Hostile Shots Fired 1135 | . 16 30 5 . 204 172 55 9 93 348 . . . 63 21 . 2 6 111 Missed 403 | . 8 11 2 . 70 67 17 3 26 107 . . . 33 12 . 1 4 42 Deflected 7 | . . . . . . 7 . . . . . . . . . . . . . Hits 732 | . 8 19 3 . 134 105 38 6 67 241 . . . 30 9 . 1 2 69 Melee 28 | . . . . . 3 5 . . 8 2 . . . . . . . . 10 Projectile 704 | . 8 19 3 . 131 100 38 6 59 239 . . . 30 9 . 1 2 59 AOE 3 | . . . . . . 2 . . . . . . . . . . . . 1 Critical Strikes 34 | . . . . . 5 3 4 . 6 7 . . . 2 2 . . . 5 Part Disruptions 1 | . . . . . . . . . . . . . . 1 . . . . . Damage Taken 13742 | . 95 467 45 . 1673 1051 944 153 1474 4679 . . . 752 181 . 91 63 2074 Core 3284 | . 10 134 14 . 205 118 109 . 159 929 . . . 152 69 . 91 23 1271 Absorbed by Shields 633 | . . . . . 144 353 115 . . . . . . . . . . . 21 Reduced by Siege Mode 7 | . . . . . . . 7 . . . . . . . . . . . . Regen/Repaired (Parts) 25 | . . . . . . . . . . . 25 . . . . . . . . Core Remaining (%) 58 | 100 . . . 36 . . . . 30 . . . 7 86 . 94 . . . Volleys Fired 284 | . 14 33 4 . 58 9 23 8 32 55 . . . 34 . . . . 14 Largest 4 | . 2 2 2 . 4 1 4 4 4 4 . . . 4 . . . . 1 Hottest 345 | . 60 110 110 . 244 56 229 185 345 276 . . . 204 . . . . 32 Shots Fired 734 | . 17 51 9 . 188 9 73 28 96 135 . . . 115 . . . . 13 Gun 448 | . 13 21 5 . 101 4 41 28 96 126 . . . . . . . . 13 Cannon 261 | . . 22 4 . 87 . 30 . . 3 . . . 115 . . . . . Launcher 23 | . 4 8 . . . 5 . . . 6 . . . . . . . . . Special 2 | . . . . . . . 2 . . . . . . . . . . . . Kinetic 405 | . 10 18 5 . 90 . 28 24 74 28 . . . 115 . . . . 13 Thermal 288 | . . 22 4 . 98 4 36 4 22 98 . . . . . . . . . Explosive 15 | . 4 8 . . . 3 . . . . . . . . . . . . . Electromagnetic 24 | . 3 3 . . . 2 7 . . 9 . . . . . . . . . Robot Hit Streak 15 | . 3 12 15 . 14 14 8 8 8 9 . . . 11 . . . . 14 Robot Miss Streak 11 | . 2 1 1 . 7 2 4 3 3 3 . . . 11 . . . . . Penetration Max 1 | . . . . . 1 . . . . . . . . 1 . . . . . Secondary Targets 2 | . . . . . . . . . 1 1 . . . . . . . . . Max Gunslinging Chain 1 | . . . . . . . . . 1 1 . . . . . . . . . Shots Hit Robots 514 | . 8 32 7 4 130 47 52 18 51 75 . . 8 54 7 . . . 21 Core Hits 269 | . 5 17 1 . 83 27 21 4 24 37 . . 3 33 4 . . . 10 Critical Kills 10 | . . . . . 1 . . . 2 5 . . . . . . . . 2 Critical Parts Destroyed 13 | . . . . . . 1 . 3 6 . . . . . . . . . 3 Critical Strikes 45 | . . . . . 4 7 1 3 8 5 . . 2 9 1 . . . 5 Burn 3 | . . . . . 3 . . . . . . . . . . . . . . Destroy 22 | . . . . . 1 . 1 3 8 5 . . . . . . . . 4 Blast 9 | . . . . . . . . . . . . . . 9 . . . . . Smash 3 | . . . . . . 2 . . . . . . . . . . . . 1 Sever 5 | . . . . . . 5 . . . . . . . . . . . . . Impale 3 | . . . . . . . . . . . . . 2 . 1 . . . . Melee Attacks 171 | . . 5 . 4 . 60 . . . 23 . . 8 . 28 7 3 3 30 Impact 21 | . . . . . . 6 . . . . . . . . 11 1 . . 3 Slashing 82 | . . 5 . . . 54 . . . 23 . . . . . . . . . Piercing 64 | . . . . . . . . . . . . . 8 . 17 6 3 3 27 Sneak Attacks 16 | . . . . 4 . 4 . . . 3 . . . . 2 . . . 3 Combat Hostiles . | . . . . . . . . . . . . . . . . . . . . Follow-up Attacks 10 | . . . . . . 7 . . . . . . . . 1 . . . 2 Martial Strikes 4 | . . . . . . 4 . . . . . . . . . . . . . Damage Inflicted 20022 | . 276 1025 193 . 3270 2054 1462 482 2500 3441 . . 468 3246 610 . . . 995 Guns 7292 | . 89 345 100 . 1395 59 727 479 1463 2244 . . . . . . . . 391 Cannons 6219 | . . 247 88 . 1856 . 735 . . 138 . . . 3155 . . . . . Explosions 2626 | . 175 433 . . . 138 . . 1022 778 . . . 80 . . . . . Melee 3759 | . . . . . . 1854 . . . 237 . . 468 . 610 . . . 590 Ramming 126 | . 12 . 5 . 19 3 . 3 15 44 . . . 11 . . . . 14 Kinetic 8572 | . 45 309 100 . 1928 . 558 459 1218 409 . . . 3155 . . . . 391 Thermal 4964 | . . 247 88 . 1323 59 768 20 254 2125 . . . 80 . . . . . Explosive 725 | . 175 433 . . . 117 . . . . . . . . . . . . . Electromagnetic 1876 | . 44 36 . . . 21 136 . 1013 626 . . . . . . . . . Impact 602 | . . . . . . 294 . . . . . . . . 263 . . . 45 Slashing 1797 | . . . . . . 1560 . . . 237 . . . . . . . . . Piercing 1360 | . . . . . . . . . . . . . 468 . 347 . . . 545 Highest Corruption 21 | . . . 1 . 1 1 1 1 21 7 7 7 7 . . . . . 8 Average Corruption 2 | . . . 1 . 1 1 1 1 1 3 7 7 7 . . . . . 2 Corruption Purged 6 | . . . . . . . . . . 4 . . . . . . . . 2 Corruption Blocked . | . . . . . . . . . . . . . . . . . . . . Effects 77 | . . . 9 . . 5 7 3 7 27 11 . 4 . . . . . 4 Message Errors 17 | . . . 3 . . . 2 1 3 5 2 . . . . . . . 1 Matter Fused 22 | . . . 2 . . 2 3 1 . 7 5 . 1 . . . . . 1 Heat Flow Errors 8 | . . . 1 . . 2 . . . 3 2 . . . . . . . . Energy Discharges 6 | . . . . . . . . . 1 2 1 . 1 . . . . . 1 Parts Rejected 2 | . . . . . . . . . . 2 . . . . . . . . . Parts Fused 2 | . . . . . . . . . 1 . . . 1 . . . . . . Data Loss (minor) 9 | . . . 2 . . 1 . 1 . 3 1 . 1 . . . . . . Data Loss (major) 2 | . . . . . . . . . . 2 . . . . . . . . . Misfires 2 | . . . 1 . . . . . . 1 . . . . . . . . . Alerts 3 | . . . . . . . . . 1 2 . . . . . . . . . Weapon Failures 4 | . . . . . . . 2 . 1 . . . . . . . . . 1 Overload Shots 4 | . . . . . . . . . 3 1 . . . . . . . . . Overflow Damage 911 | . 12 . . . 9 209 . . 34 240 . . 43 28 164 . . . 172 Projectiles 106 | . . . . . 9 42 . . . 27 . . . 28 . . . . . Explosions 142 | . 12 . . . . . . . 34 96 . . . . . . . . . Melee 663 | . . . . . . 167 . . . 117 . . 43 . 164 . . . 172 Knockbacks 48 | . . . . . 38 2 . . . . . . . 8 . . . . . Impact 1 | . . . . . . 1 . . . . . . . . . . . . . Kinetic 41 | . . . . . 33 . . . . . . . . 8 . . . . . Secondary 6 | . . . . . 5 1 . . . . . . . . . . . . . Self-Inflicted Damage 402 | . 30 32 . . . . . . 103 159 . . . 71 . . . . 7 Shots 7 | . 1 1 . . . . . . 1 3 . . . 1 . . . . . Rammed 11 | . . . 2 . 2 . . 1 1 3 . . . . . . . . 2 Targets Rammed 17 | . 2 . 2 . 3 1 . 1 2 3 . . . 1 . . . . 2 Kicked 4 | . 2 . . . 1 1 . . . . . . . . . . . . . Crushed 2 | . . . . . . . . . 1 . . . . 1 . . . . . Highest Temperature 369 | . 20 . 189 . 345 232 198 144 220 369 239 . 41 304 294 47 42 8 . Average Temperature 82 | . 15 . 101 . 90 123 121 76 82 123 101 . 11 81 51 12 16 8 . Received Heat Transfer 2173 | . . 60 . . 466 216 94 9 273 567 . . . 196 94 . . 9 189 Effects 1 | . . . . . . . . . . 1 . . . . . . . . . Shutdowns 1 | . . . . . . . . . . 1 . . . . . . . . . Siege Activations 2 | . . . . . . . 1 . . 1 . . . . . . . . . Total Turns 6 | . . . . . . . 5 . . 1 . . . . . . . . . Longest Duration 5 | . . . . . . . 5 . . 1 . . . . . . . . . Martial Activations 7 | . . . . . . 7 . . . . . . . . . . . . . Total Turns 371 | . . . . . . 371 . . . . . . . . . . . . . Longest Duration 138 | . . . . . . 138 . . . . . . . . . . . . . Shielding Activations . | . . . . . . . . . . . . . . . . . . . . Robots Disrupted . | . . . . . . . . . . . . . . . . . . . . Combat Hostiles . | . . . . . . . . . . . . . . . . . . . . Robots Corrupted 6 | . . . . . . 3 . . 3 . . . . . . . . . . Combat Hostiles 1 | . . . . . . 1 . . . . . . . . . . . . . Parts Fried 12 | . . . . . . 8 . . 3 1 . . . . . . . . . Impact Corruptions 7 | . . . . . . 5 . . . 1 . . . . 1 . . . . Robots Melted . | . . . . . . . . . . . . . . . . . . . . Combat Hostiles . | . . . . . . . . . . . . . . . . . . . . Parts Melted 11 | . . . . . 4 . . . 1 6 . . . . . . . . . Heat Transferred 6795 | . . 333 83 . 2664 148 1073 37 346 2061 . . . 50 . . . . . Parts Sabotaged 1 | . . . . . . . . . . 1 . . . . . . . . . Parts Stolen . | . . . . . . . . . . . . . . . . . . . . Parts Stripped . | . . . . . . . . . . . . . . . . . . . . Power Chain Reactions 2 | . . . . . . . . . 1 1 . . . . . . . . . Alert | -11 -10 -10 -9 -9 -6 -6 -6 -6 -6 -5 -5 -5 -5 -4 -3 -3 -2 -2 -2 ------- Run | Yrd Mat Sub Rec Scr Fac Ext Cet Arc Hub Fac Was Fac DSF Fac Res Tes Res Qua Frg Maximum Alert Level 5 | . . . . . 1 3 2 1 4 4 2 1 2 5 4 3 2 1 2 Low Security (%) 26 | 100 100 . 100 . 18 25 . 10 35 . . . 8 . . . . 98 47 Level 1 20 | . . . . . 81 18 17 89 7 . 71 100 13 8 . . 44 1 47 Level 2 23 | . . . . . . 33 82 . 12 52 28 . 77 1 . 15 55 . 4 Level 3 9 | . . . . . . 22 . . 35 13 . . . 17 . 84 . . . Level 4 15 | . . . . . . . . . 8 34 . . . 18 100 . . . . Level 5 2 | . . . . . . . . . . . . . . 29 . . . . . High Security 1 | . . . . . . . . . . . . . . 24 . . . . . Max Security . | . . . . . . . . . . . . . . . . . . . . Sterilizations 1 | . . . . . . . . . . . . . 1 . . . . . . Peak Influence 2527 | . 102 . 44 . 347 956 532 335 1145 1336 439 209 616 2527 1429 813 434 243 501 Initial 1326 | . . . . . . 74 532 170 102 553 439 209 149 323 1326 795 402 243 29 Average 572 | . 37 . 7 . 247 447 442 284 540 842 372 209 478 1604 1290 720 361 32 229 Influence Increases 11691 | . 124 20 183 . 801 1542 289 205 1478 1639 . 5 527 2660 667 110 202 93 1146 Destroy 0b10 Robot/C 4040 | . 60 20 20 . 420 900 160 80 360 620 . . 180 1060 . . . . 160 Destroy 0b10 Robot/NC 315 | . 10 . 10 . 15 30 10 . 50 60 . . 20 50 30 . . . 30 Destroy Leader 636 | . 14 . . . 92 136 . . 82 106 . . 20 152 10 . . . 24 Allied During Kill 1976 | . . . . . 53 343 98 70 335 45 . . 220 689 . . . . 123 Successful Hack 451 | . 15 . 31 . 4 7 . . . 63 . 5 . . 71 50 66 30 109 Select Force Hacks 120 | . . . 120 . . . . . . . . . . . . . . . . Disable Machine 870 | . . . . . . 45 . 45 240 255 . . 15 195 . 60 . . 15 Anti-Garrison Action 600 | . . . . . 200 . . . 200 . . . . . . . . . 200 Destroy Structure 1163 | . 25 . 2 . 2 21 21 10 181 310 . . 72 424 26 . 6 3 60 Partial Spotted 120 | . . . . . . . . . 15 15 . . . . 30 . 30 . 30 Lose Combat Pursuer 900 | . . . . . 15 60 . . 15 165 . . . 90 300 . . 60 195 Active Sensor Use 500 | . . . . . . . . . . . . . . . 200 . 100 . 200 Influence Decreases 11218 | . 124 20 168 15 648 745 814 335 643 1513 957 90 125 749 1779 810 483 474 726 Entered New Map 5151 | . . . . 15 . 79 418 255 193 577 817 90 65 293 1201 620 313 191 24 Time Decay 3314 | . 124 20 168 . 368 446 246 60 270 586 140 . . 246 278 40 20 40 262 Lost Part 700 | . . . . . 140 60 30 . 30 310 . . . 10 . . . . 120 Lost Ally 910 | . . . . . 140 160 120 20 . 40 . . 60 200 . . . . 170 Purge Threat 1143 | . . . . . . . . . 150 . . . . . 300 150 150 243 150 Squads Dispatched 70 | . . . . . 7 7 . . 7 14 . . 1 13 8 . 4 . 9 Investigation 34 | . . . . . 3 4 . . 1 6 . . . 3 5 . 4 . 8 Extermination 7 | . . . . . 2 . . . 1 3 . . . 1 . . . . . Reinforcement 19 | . . . . . 1 2 . . 4 4 . . 1 3 3 . . . 1 Assault 8 | . . . . . . 1 . . . 1 . . . 6 . . . . . Garrison 2 | . . . . . 1 . . . 1 . . . . . . . . . . Intercept . | . . . . . . . . . . . . . . . . . . . . Searches Triggered . | . . . . . . . . . . . . . . . . . . . . Construction Impeded . | . . . . . . . . . . . . . . . . . . . . Haulers Reinforced 2 | . . . . . 1 . . . . . . . . 1 . . . . . Active Scanning Responses 5 | . . . . . . . . . . . . . . . 2 . 1 . 2 Cargo Convoy Interrupts 1 | . . . . . . . . . . 1 . . . . . . . . . Stealth | -11 -10 -10 -9 -9 -6 -6 -6 -6 -6 -5 -5 -5 -5 -4 -3 -3 -2 -2 -2 --------- Run | Yrd Mat Sub Rec Scr Fac Ext Cet Arc Hub Fac Was Fac DSF Fac Res Tes Res Qua Frg Distress Signals 21 | . . . 1 . 2 . 2 . 3 1 . . . 1 7 . 1 . 3 Communications Jammed . | . . . . . . . . . . . . . . . . . . . . Distress Signals . | . . . . . . . . . . . . . . . . . . . . Times Spotted 373 | . 4 16 3 . 29 53 10 11 32 69 . . 4 46 34 . 6 7 49 Peak Tracking Total 15 | . 5 2 3 . 6 7 5 2 13 15 . . 3 8 12 . 8 5 10 Tactical Retreats 30 | . . . . . 1 4 . . 1 8 . . . 3 6 . . 1 6 Traps | -11 -10 -10 -9 -9 -6 -6 -6 -6 -6 -5 -5 -5 -5 -4 -3 -3 -2 -2 -2 ------- Run | Yrd Mat Sub Rec Scr Fac Ext Cet Arc Hub Fac Was Fac DSF Fac Res Tes Res Qua Frg Traps Triggered 12 | . . 1 . . 1 . . . . 2 . . . . 3 . . 2 3 Indirectly . | . . . . . . . . . . . . . . . . . . . . Trap Hack Attempts . | . . . . . . . . . . . . . . . . . . . . Triggered . | . . . . . . . . . . . . . . . . . . . . Disarmed . | . . . . . . . . . . . . . . . . . . . . Reprogrammed . | . . . . . . . . . . . . . . . . . . . . Reused . | . . . . . . . . . . . . . . . . . . . . Traps Extracted . | . . . . . . . . . . . . . . . . . . . . Installed 1 | . . 1 . . . . . . . . . . . . . . . . . Triggered . | . . . . . . . . . . . . . . . . . . . . Most Traps Carried 1 | . . . . 1 1 1 1 1 1 1 . . . . . . . . . Machines | -11 -10 -10 -9 -9 -6 -6 -6 -6 -6 -5 -5 -5 -5 -4 -3 -3 -2 -2 -2 ---------- Run | Yrd Mat Sub Rec Scr Fac Ext Cet Arc Hub Fac Was Fac DSF Fac Res Tes Res Qua Frg Machines Disabled 61 | . . 1 . . . 4 . 3 16 17 . . 1 13 . 4 . . 2 Max in Single Turn 9 | . . 1 . . . 1 . 1 9 5 . . . 2 . 1 . . . Garrison Access 7 | . . . . . 1 . . . 1 . . . . . 2 . 1 1 1 Network Hub 1 | . . . . . . . . . 1 . . . . . . . . . . Machines Repaired . | . . . . . . . . . . . . . . . . . . . . Machines Dismantled . | . . . . . . . . . . . . . . . . . . . . Machines Sabotaged . | . . . . . . . . . . . . . . . . . . . . Overloaded Fab Kills . | . . . . . . . . . . . . . . . . . . . . Hacking | -11 -10 -10 -9 -9 -6 -6 -6 -6 -6 -5 -5 -5 -5 -4 -3 -3 -2 -2 -2 --------- Run | Yrd Mat Sub Rec Scr Fac Ext Cet Arc Hub Fac Was Fac DSF Fac Res Tes Res Qua Frg Machines Accessed 105 | . 3 2 10 3 6 13 . . 5 11 . 1 . 3 17 3 8 5 15 Terminals 60 | . 3 . 6 . 2 11 . . 4 4 . 1 . . 11 3 4 4 7 Fabricators 5 | . . . . . . . . . . . . . . 1 . . . . 4 Repair Stations . | . . . . . . . . . . . . . . . . . . . . Recycling Units 26 | . . . 4 . 2 2 . . . 6 . . . 2 4 . 3 . 3 Scanalyzers . | . . . . . . . . . . . . . . . . . . . . Garrison Access 9 | . . . . . 2 . . . 1 1 . . . . 2 . 1 1 1 Total Hacks 332 | . 10 4 21 21 9 20 . . 6 30 . 1 . 8 65 18 27 36 56 Successful 178 | . 7 4 10 21 3 7 . . 2 12 . 1 . 4 30 6 12 25 34 Failed 153 | . 3 . 11 . 6 13 . . 4 18 . . . 4 35 12 15 10 22 Catastrophic 31 | . . . 2 . 3 2 . . 2 6 . . . 2 8 1 4 . 1 Database Lockouts 1 | . . . . . . . . . . . . . . . . . . 1 . Manual 168 | . 11 . 21 . 5 9 1 . 4 20 . . . 5 40 11 7 18 16 Terminals 239 | . 10 . 17 . 4 18 . . 5 14 . 1 . . 54 18 23 35 40 Fabricators 12 | . . . . . . . . . . . . . . 3 . . . . 9 Repair Stations . | . . . . . . . . . . . . . . . . . . . . Recycling Units 42 | . . . 4 . 3 2 . . . 12 . . . 5 9 . 3 . 4 Scanalyzers . | . . . . . . . . . . . . . . . . . . . . Garrison Access 14 | . . . . . 2 . . . 1 4 . . . . 2 . 1 1 3 Terminal Hacks 114 | . 5 4 3 21 1 2 . . 1 2 . 1 . . 20 4 7 21 22 Record 19 | . . 3 . 16 . . . . . . . . . . . . . . . Part Schematic 2 | . . . 2 . . . . . . . . . . . . . . . . Robot Schematic 1 | . . . . . . . . . . . . . . . . . . 1 . Robot Analysis 9 | . 2 . 1 4 . . . . . . . . . . . . 1 1 . Prototype ID Bank 20 | . . . . . . . . . . . . . . . 4 . 1 11 4 Open Door 3 | . . . . . 1 1 . . . . . . . . . . 1 . . Open DSF 1 | . . . . . . . . . . . . 1 . . . . . . . Level Access Points 3 | . . . . . . . . . . . . . . . . 1 1 . 1 Branch Access Points 4 | . . . . . . . . . . 1 . . . . 1 1 1 . . Machine Index 3 | . . . . . . . . . . . . . . . 1 . . 1 1 Repair Station Index 1 | . . . . . . . . . . . . . . . . . . . 1 Recycling Unit Index 2 | . . . . . . . . . . . . . . . 1 . . . 1 Scanalyzer Index 2 | . . . . . . . . . . . . . . . . . 1 . 1 Garrison Index 1 | . . . . . . . . . . . . . . . . . . . 1 Alert Level 4 | . . . . . . . . . . . . . . . 2 . . 1 1 Unreport Threat 8 | . . . . . . . . . 1 . . . . . 2 1 1 2 1 Locate Traps 14 | . 2 . . . . 1 . . . 1 . . . . 4 1 . 1 4 Maintenance Status 1 | . . . . . . . . . . . . . . . . . . 1 . Recall Investigation 2 | . . . . . . . . . . . . . . . 1 . . . 1 Recall Reinforcements 1 | . . . . . . . . . . . . . . . 1 . . . . Hauler Manifests 2 | . 1 . . . . . . . . . . . . . 1 . . . . Registered Components 2 | . . . . . . . . . . . . . . . . . . 1 1 Registered Prototypes 1 | . . . . . . . . . . . . . . . . . . . 1 Zone Layout 5 | . . . . . . . . . . . . . . . 2 . . 1 2 Proto ID Catalog 3 | . . 1 . 1 . . . . . . . . . . . . . . 1 Fabricator Hacks 7 | . . . . . . . . . . . . . . 2 . . . . 5 Load Schematic 3 | . . . . . . . . . . . . . . 1 . . . . 2 Build 4 | . . . . . . . . . . . . . . 1 . . . . 3 Repair Station Hacks . | . . . . . . . . . . . . . . . . . . . . Recycling Unit Hacks . | . . . . . . . . . . . . . . . . . . . . Scanalyzer . | . . . . . . . . . . . . . . . . . . . . Garrison Access Hacks 4 | . . . . . . . . . . . . . . . 2 . 1 1 . Seal Access 4 | . . . . . . . . . . . . . . . 2 . 1 1 . Unauthorized Hacks 52 | . 2 . 7 . 2 5 . . 1 9 . . . 2 8 2 4 3 7 Terminals 25 | . 2 . 3 . . 3 . . . 3 . . . . 5 2 1 3 3 Assimilate 1 | . . . . . . . . . . . . . . . . . . . 1 Botnet 22 | . 2 . 3 . . 3 . . . 3 . . . . 5 2 1 2 1 Disrupt 2 | . . . . . . . . . . . . . . . . . . 1 1 Fabricators . | . . . . . . . . . . . . . . . . . . . . Repair Stations . | . . . . . . . . . . . . . . . . . . . . Recycling Units 24 | . . . 4 . 1 2 . . . 6 . . . 2 3 . 3 . 3 Tunnel 4 | . . . 4 . . . . . . . . . . . . . . . . Fedlink 16 | . . . . . 1 2 . . . 4 . . . 1 3 . 3 . 2 Scrapoids 2 | . . . . . . . . . . . . . . 1 . . . . 1 Scraphulk 2 | . . . . . . . . . . 2 . . . . . . . . . Scanalyzers . | . . . . . . . . . . . . . . . . . . . . Garrison Access 3 | . . . . . 1 . . . 1 . . . . . . . . . 1 Jam 3 | . . . . . 1 . . . 1 . . . . . . . . . 1 Data Cores Recovered 3 | . . . . . . . . . 1 1 . . . . . . . . 1 Used . | . . . . . . . . . . . . . . . . . . . . Hacking Detections 62 | . 3 . 6 . 4 8 . . 4 5 . . . 2 10 3 3 4 10 Full Trace Events 5 | . . . 1 . 1 2 . . . . . . . . . . . . 1 Feedback Events . | . . . . . . . . . . . . . . . . . . . . Feedback Blocked . | . . . . . . . . . . . . . . . . . . . . Robot Schematics Acquired 1 | . . . . . . . . . . . . . . . . . . 1 . Robots Built 3 | . . . . . . . . . . . . . . . . . . . 3 Authchips . | . . . . . . . . . . . . . . . . . . . . Time 62 | . . . . . . . . . . . . . . . . . . . 62 Total Robot Build Rating 21 | . . . . . . . . . . . . . . . . . . . 21 Part Schematics Acquired 2 | . . . 2 . . . . . . . . . . . . . . . . Parts Built 4 | . . . . . . . . . . . . . . 1 . . . . 3 Authchips 1 | . . . . . . . . . . . . . . 1 . . . . . Time 109 | . . . . . . . . . . . . . . 17 . . . . 92 Total Part Build Rating 28 | . . . . . . . . . . . . . . 1 . . . . 27 Parts Repaired . | . . . . . . . . . . . . . . . . . . . . Time . | . . . . . . . . . . . . . . . . . . . . Parts Recycled . | . . . . . . . . . . . . . . . . . . . . Recycled Matter . | . . . . . . . . . . . . . . . . . . . . Retrieved Matter . | . . . . . . . . . . . . . . . . . . . . Retrieved Components . | . . . . . . . . . . . . . . . . . . . . Parts Scanalyzed . | . . . . . . . . . . . . . . . . . . . . Part Schematics Acquired . | . . . . . . . . . . . . . . . . . . . . Parts Damaged . | . . . . . . . . . . . . . . . . . . . . Bothacking | -11 -10 -10 -9 -9 -6 -6 -6 -6 -6 -5 -5 -5 -5 -4 -3 -3 -2 -2 -2 ------------ Run | Yrd Mat Sub Rec Scr Fac Ext Cet Arc Hub Fac Was Fac DSF Fac Res Tes Res Qua Frg Used RIF Installer . | . . . . . . . . . . . . . . . . . . . . Robots Hacked 4 | . . . . 4 . . . . . . . . . . . . . . . Non-combat . | . . . . . . . . . . . . . . . . . . . . Combat 4 | . . . . 4 . . . . . . . . . . . . . . . Robot Hacks Applied 4 | . . . . 4 . . . . . . . . . . . . . . . parse_system 4 | . . . . 4 . . . . . . . . . . . . . . . Relay Couplers Released 4 | . . . . . . . . . 4 . . . . . . . . . . Programmers 4 | . . . . . . . . . 4 . . . . . . . . . . Fabnet Peak Effective % . | . . . . . . . . . . . . . . . . . . . . Robots Rewired 21 | . . . 10 . . 11 . . . . . . . . . . . . . Allies Hacked 1 | . . . . . . . . . . . . . . 1 . . . . . Hacks Repelled . | . . . . . . . . . . . . . . . . . . . . Allies | -11 -10 -10 -9 -9 -6 -6 -6 -6 -6 -5 -5 -5 -5 -4 -3 -3 -2 -2 -2 -------- Run | Yrd Mat Sub Rec Scr Fac Ext Cet Arc Hub Fac Was Fac DSF Fac Res Tes Res Qua Frg Total Allies 65 | . . . 10 . . 14 5 . . 2 20 . . 5 . . . . 9 Largest Group 20 | . . . 10 10 10 8 6 4 3 1 20 20 20 14 . . . . 8 Highest-Rated Group 770 | . . . 142 142 142 337 639 377 281 123 770 770 770 574 . . . . 464 Highest-Rated Ally 159 | . . . 27 27 27 159 159 96 96 123 50 50 50 50 . . . . 67 Total Orders 5 | . . . . 3 . . . . . 2 . . . . . . . . . STAY 2 | . . . . 2 . . . . . . . . . . . . . . . FOLLOW 1 | . . . . 1 . . . . . . . . . . . . . . . RETURN 2 | . . . . . . . . . . 2 . . . . . . . . . Ally Attacks 736 | . . . 2 . 30 175 58 20 49 48 . . 61 211 . . . . 82 Total Damage 22507 | . . . 21 . 466 4497 2163 819 1387 2229 . . 2377 6688 . . . . 1860 Kills 139 | . . . 2 . 5 30 5 4 12 16 . . 12 46 . . . . 7 Allies Corrupted 2 | . . . . . . . . . 2 . . . . . . . . . . Allies Melted 1 | . . . . . . 1 . . . . . . . . . . . . . Intel | -11 -10 -10 -9 -9 -6 -6 -6 -6 -6 -5 -5 -5 -5 -4 -3 -3 -2 -2 -2 ------- Run | Yrd Mat Sub Rec Scr Fac Ext Cet Arc Hub Fac Was Fac DSF Fac Res Tes Res Qua Frg Active Infowar (turns) 3435 | . . . . . 464 . . . . 393 282 3 222 630 605 94 56 115 571 Optics 1686 | . . . . . . . . . . 329 282 3 222 564 . . . . 286 Sensors 1018 | . . . . . . . . . . 256 142 3 222 395 . . . . . A.S.S. 1447 | . . . . . . . . . . . . . . 66 605 94 53 98 531 Terrain 1433 | . . . . . 464 . . . . 243 . . . . 424 94 56 115 37 Cloaking 550 | . . . . . . . . . . . . . . . 33 . 1 29 487 Robot Analysis Total 9 | . 2 . 1 4 . . . . . . . . . . . . 1 1 . Derelict Logs Recovered 7 | . . 3 . 4 . . . . . . . . . . . . . . . Drone Launches 10 | . . . . . . . . . . 10 . . . . . . . . . Drone Recoveries 9 | . . . . . . . . . . 9 . . . . . . . . . Exploration | -11 -10 -10 -9 -9 -6 -6 -6 -6 -6 -5 -5 -5 -5 -4 -3 -3 -2 -2 -2 ------------- Run | Yrd Mat Sub Rec Scr Fac Ext Cet Arc Hub Fac Was Fac DSF Fac Res Tes Res Qua Frg Turns Passed 16139 | 2 362 3366 961 3667 948 1115 527 127 591 1828 282 3 222 694 605 94 56 115 574 Spaces Moved 13009 | 1 264 1691 529 2006 460 611 198 62 302 1699 435 3 157 610 1591 283 241 372 1494 Core 774 | . . . . 238 . . . . . 497 . . . 15 . . . . 24 Treads 5702 | . . 1691 529 1768 244 . 174 62 302 611 . . 79 242 . . . . . Legs 1116 | 1 264 . . . 216 611 24 . . . . . . . . . . . . Wheels . | . . . . . . . . . . . . . . . . . . . . Hover . | . . . . . . . . . . . . . . . . . . . . Flight 5417 | . . . . . . . . . . 591 435 3 78 353 1591 283 241 372 1470 Fastest Speed 15 | 120 120 160 160 50 110 110 116 160 160 36 42 42 42 32 22 19 16 15 15 Average Speed 98 | 120 120 160 160 163 151 131 154 160 160 86 59 95 101 87 23 20 18 17 21 Slowest Speed 240 | 120 120 160 160 240 240 220 160 160 160 240 122 122 160 240 32 22 19 21 200 Overloaded Moves 241 | . . . . . . 102 . . . . . . . . . . 7 66 66 Propulsion Burnouts . | . . . . . . . . . . . . . . . . . . . . Robots Hopped 33 | . . . . . . . . . . 5 . . . 3 4 3 3 5 10 Potential Cave-ins 2 | . . . . . . . . . . 2 . . . . . . . . . Cave-ins Triggered . | . . . . . . . . . . . . . . . . . . . . Teleports 1 | . . . . . . . . . . . . . . . . . . . 1 Exploration Rate (%) 57 | 2 55 93 95 89 14 75 56 66 52 50 96 . 83 30 67 44 17 54 51 Regions Visited 19 Branch Regions 10 Pre-discovered Areas 13 | . . 3 4 5 . 1 . . . . . . . . . . . . . Known Exits Taken 9 | . . . . 1 1 . . . 1 . . 1 . 1 1 1 1 1 . Unknown Exits Taken 7 | 1 1 1 1 . . 1 1 1 . . . . . . . . . . . Scrap Searched 12 | . . 5 . 7 . . . . . . . . . . . . . . . Spaces Dug 65 | . . 2 . . . . . . 4 27 . . . . 13 . 2 1 16 Terrain Destroyed 544 | . 42 45 1 . . 11 6 10 214 102 . . . 81 13 . 2 1 16 Melee 50 | . . . . . . . . . . 18 . . . . 13 . 2 1 16 Projectile 143 | . . 6 1 . . . 6 10 47 29 . . . 44 . . . . . AOE 351 | . 42 39 . . . 11 . . 167 55 . . . 37 . . . . . Terrain Rammed . | . . . . . . . . . . . . . . . . . . . . Walls Destroyed . | . . . . . . . . . . . . . . . . . . . . Machines Disabled . | . . . . . . . . . . . . . . . . . . . . Actions | -11 -10 -10 -9 -9 -6 -6 -6 -6 -6 -5 -5 -5 -5 -4 -3 -3 -2 -2 -2 --------- Run | Yrd Mat Sub Rec Scr Fac Ext Cet Arc Hub Fac Was Fac DSF Fac Res Tes Res Qua Frg Total 15492 | 1 295 2296 637 2393 577 842 371 70 341 1913 457 3 205 685 1772 306 242 410 1676 Wait 1346 | . . 524 15 333 11 65 92 . 2 52 19 . 17 24 100 . . 12 80 Move 12934 | . 263 1690 528 2005 459 610 197 61 301 1691 434 2 156 603 1582 277 234 365 1476 Hop 24 | . . . . . . . . . . 3 . . . 3 4 2 3 1 8 Pick Up 104 | . 6 9 1 19 10 14 11 . . 16 . . 5 4 6 1 1 1 . Fast Attach 135 | . . 4 . 9 4 8 12 . 1 27 1 . 9 6 21 8 1 4 20 Attach 72 | . . 4 . 2 18 6 4 . 1 21 1 . 2 4 5 1 1 . 2 Detach 46 | . . 1 1 7 7 . 5 . . 7 . 1 1 2 6 1 . . 7 Swap 48 | 1 4 9 2 1 5 1 5 . 1 7 . . . 2 4 2 . 3 1 Drop 130 | . 6 16 3 13 2 8 22 . 1 8 1 . 7 2 8 10 . 4 19 Fire 284 | . 14 33 4 . 58 9 23 8 32 55 . . . 34 . . . . 14 Melee 138 | . . 5 . 4 . 45 . . . 23 . . 8 . 20 4 2 2 25 Ram 2 | . . . . . . . . . . . . . . . . . . . 2 Kick 4 | . 2 . . . 1 1 . . . . . . . . . . . . . Crush 11 | . . . 2 . 2 . . 1 2 3 . . . 1 . . . . . Escape Stasis 46 | . . . . . . . . . . . . . . . 16 . . 18 12 Rewire 157 | . . . 81 . . 75 . . . . 1 . . . . . . . . Trap 1 | . . 1 . . . . . . . . . . . . . . . . . Miscellaneous 10 | . . . . . . . . . . . . . . . . . . . 10 Route ------- -11/Scrapyard -10/Materials (discovered 3 exits: [*Mat] / [*Min] / *Sub) -10/Subcaves (discovered 3 exits: [*Mat x2] / *Rec) -9/Recycling (discovered 2 exits: [*Fac] / *Scr) -9/Scraptown (discovered 2 exits: *Fac x2) -6/Factory (discovered 8 exits: *Fac x4 / Low x2 / *Ext x2) -6/Extension (discovered 2 exits: *Fac / *Cet) -6/Cetus (discovered 2 exits: *Fac / [*Arc]) -6/Archives (discovered 2 exits: *Hub x2) -6/Hub_04(d) (discovered 3 exits: *Fac x3) -5/Factory (discovered 2 exits: *Upp x2) -5/Waste -5/Factory -5/DSF -4/Factory -3/Research (discovered 6 exits: *Res x3 / Arm / *Tes x2) -3/Testing -2/Research (discovered 5 exits: Acc x3 / *Qua x2) -2/Quarantine (discovered 3 exits: *Acc / *Sec / *Frg) -2/Protoforge (discovered 1 exit: Acc) History --------- Turn | Location | Event 3 | -11/Scrapyard | Discovered new exit (range 0) 3 | -11/Scrapyard | Entered Materials 106 | -10/Materials | Discovered new exit (range 15) 155 | -10/Materials | Discovered new exit (range 14) 280 | -10/Materials | Discovered new exit (range 9) 305 | -10/Materials | Build established: Mutant 365 | -10/Materials | Entered Subcaves 370 | -10/Subcaves | Learned location of Storage (-9) 420 | -10/Subcaves | Learned 2 Materials zone layouts 511 | -10/Subcaves | Discovered new exit (range 15) 633 | -10/Subcaves | A swath of the cavern ceiling suddenly collapsed 1677 | -10/Subcaves | Learned location of Zion (-6) 1677 | -10/Subcaves | Met a Zionite searching for "candidates" 2021 | -10/Subcaves | Visited Clippyterm 2026 | -10/Subcaves | Learned location of Section 7 (-2) 2195 | -10/Subcaves | Discovered new exit (range 15) 2451 | -10/Subcaves | Curiously followed by a Cobbler waking with a query about "LVR3C" 2804 | -10/Subcaves | Core integrity fell below 50% 2963 | -10/Subcaves | Visited 4L-MR0's lab 2977 | -10/Subcaves | Found Power Bank 3122 | -10/Subcaves | Discovered new exit (range 9) 3731 | -10/Subcaves | Entered Recycling 4136 | -9/Recycling | Build established: Commander-Mutant 4363 | -9/Recycling | Discovered new exit (range 5) 4640 | -9/Recycling | Scanned before Scraplab entrance 4662 | -9/Recycling | Entered Scraplab 4675 | -9/Recycling | Discovered new exit (range 2) 4692 | -9/Recycling | Entered Scraptown 4692 | -9/Scraptown | Accompanied by 10 allies 4692 | -9/Scraptown | System corruption cleaned by C-Scrubber 4942 | -9/Scraptown | Scanned Subdweller tech in exchange for log data 4945 | -9/Scraptown | Learned 12 Research zone layouts 4947 | -9/Scraptown | Learned location of Warlord (-5) 4950 | -9/Scraptown | Learned location of 2 exits from Factory 4964 | -9/Scraptown | Discovered new exit (range 13) 5286 | -9/Scraptown | Heard Great Nut preacher, LISTEN AND RECITE! 5449 | -9/Scraptown | Visited Symbiants 5485 | -9/Scraptown | Visited CPS Storage 5511 | -9/Scraptown | Visited Comm Corps 5581 | -9/Scraptown | Visited Science Testing Area 5613 | -9/Scraptown | Visited Artisan Demo Area 5743 | -9/Scraptown | Visited UFD Registry 5745 | -9/Scraptown | Registered with UFD as "Raillever" 5785 | -9/Scraptown | Visited Observation Area 5817 | -9/Scraptown | Visited Scrap Suit Storage 5842 | -9/Scraptown | Visited Research Penetration Think Tank 5979 | -9/Scraptown | Visited Analyses Database 6014 | -9/Scraptown | Visited Science Guys 6101 | -9/Scraptown | Delivered Scrap Shield to a Scientist 6222 | -9/Scraptown | Visited Scrapoid Research Area 6249 | -9/Scraptown | Visited DA-N13 Charitable Foundation 6263 | -9/Scraptown | Found DCF Scrap (27 items) 6300 | -9/Scraptown | Visited Infowarlord's Domain 6329 | -9/Scraptown | Visited Junk Repository 6375 | -9/Scraptown | Visited Cartography Club 6427 | -9/Scraptown | Found Surveybot 17 Chip 6508 | -9/Scraptown | Learned location of Extension (-6) 6508 | -9/Scraptown | Learned location of Archives (-6) 6508 | -9/Scraptown | Learned 8 Access zone layouts 6508 | -9/Scraptown | Learned 4 Mines zone layouts 6508 | -9/Scraptown | Learned 4 Recycling zone layouts 6508 | -9/Scraptown | Learned 24 Proximity Caves zone layouts 6508 | -9/Scraptown | Learned 8 Lower Caves zone layouts 6508 | -9/Scraptown | Learned 4 Hub_04(d) zone layouts 6508 | -9/Scraptown | Learned location of 2 exits from Research 6508 | -9/Scraptown | Learned location of 3 exits from Upper Caves 6508 | -9/Scraptown | Learned location of 3 exits from Proximity Caves 6508 | -9/Scraptown | Identified exit to Factory 6760 | -9/Scraptown | Found Exp. Terrain Scanner 8276 | -9/Scraptown | Met Optimus 8276 | -9/Scraptown | Accepted into 0bPrime 8359 | -9/Scraptown | Entered Factory 8359 | -6/Factory | Accompanied by 10 allies 8359 | -6/Factory | Evolved 8 slots: Propulsion x2, Utility x4, Weapon x2 8360 | -6/Factory | Identified exit to Factory 8360 | -6/Factory | Identified exit to Lower Caves 8361 | -6/Factory | Identified exit to Extension 8365 | -6/Factory | Attached Power Bank, gained temporary slots: Power x3 8438 | -6/Factory | Garrison activated, responded to threat 8609 | -6/Factory | Lost 5 allies 8869 | -6/Factory | Loaded intel: 8 recycling unit locations 9307 | -6/Factory | Entered Extension 9313 | -6/Extension | Disrupted transfer network 9329 | -6/Extension | Lost 8 parts (2p3u3w) 9430 | -6/Extension | Rescued A7 9489 | -6/Extension | Rescued a captive Derelict 9490 | -6/Extension | Rescued a captive Derelict 9598 | -6/Extension | P-60 Hacker assimilated allied 4H-TJ9(b) 9712 | -6/Extension | Loaded intel: 2 recycling unit locations 9712 | -6/Extension | Learned location of Protoforge (-2) 9799 | -6/Extension | Build established: Gladiator 9822 | -6/Extension | Spotted B-75 Beast 9851 | -6/Extension | Spotted B-75 Beast 9864 | -6/Extension | Destroyed B-75 Beast 9880 | -6/Extension | Destroyed B-75 Beast 10130 | -6/Extension | Lost 3 parts (1p1u1w) 10201 | -6/Extension | Build established: Scavenger-Gladiator 10357 | -6/Extension | First assault squad dispatched 10390 | -6/Extension | Discovered exit to Factory (range 10) 10392 | -6/Extension | Discovered new exit (range 6) 10422 | -6/Extension | Entered Cetus 10422 | -6/Cetus | Accompanied by 5 allies (A7) 10426 | -6/Cetus | Lost 3 allies 10427 | -6/Cetus | Acquired a Cetus Manufacturing Module code from A7 10443 | -6/Cetus | Spotted Cetus Guard 10443 | -6/Cetus | Spotted Cetus Guard 10446 | -6/Cetus | Spotted Cetus Guard 10447 | -6/Cetus | Spotted Cetus Guard 10456 | -6/Cetus | Destroyed Cetus Guard 10476 | -6/Cetus | Allies destroyed Cetus Guard 10476 | -6/Cetus | Allies destroyed Cetus Guard 10487 | -6/Cetus | Destroyed Cetus Guard 10499 | -6/Cetus | Lost 4 allies 10502 | -6/Cetus | Lost 3 parts (1p1u1w) 10642 | -6/Cetus | Started Cetus Manufacturing Module 10661 | -6/Cetus | Discovered new exit (range 15) 10667 | -6/Cetus | Manufactured an Enhanced Grunt 10692 | -6/Cetus | Manufactured an Enhanced Grunt 10717 | -6/Cetus | Manufactured an Enhanced Grunt 10742 | -6/Cetus | Manufactured an Enhanced Grunt 10767 | -6/Cetus | Manufactured an Enhanced Grunt 10772 | -6/Cetus | Spotted Cetus Guard 10772 | -6/Cetus | Spotted Cetus Guard 10784 | -6/Cetus | Build established: Scavenger-Tank 10784 | -6/Cetus | Spotted Cetus Guard 10785 | -6/Cetus | Allies destroyed Cetus Guard 10785 | -6/Cetus | Spotted Cetus Guard 10791 | -6/Cetus | Extracted ID and sensor layout for unrecognized location from A7's data core 10793 | -6/Cetus | Allies destroyed Cetus Guard 10813 | -6/Cetus | Destroyed Cetus Guard 10814 | -6/Cetus | Core integrity fell below 50% 10817 | -6/Cetus | Destroyed Cetus Guard 10824 | -6/Cetus | Found Prototype Device 10824 | -6/Cetus | Identified Exp. Thermal Shield 10842 | -6/Cetus | Discovered exit to Factory (range 15) 10854 | -6/Cetus | Met Revision 17 10949 | -6/Cetus | Entered Archives 10949 | -6/Archives | Accompanied by 4 allies 11008 | -6/Archives | Discovered new exit (range 16) 11047 | -6/Archives | Discovered new exit (range 16) 11076 | -6/Archives | Entered Hub_04(d) 11076 | -6/Hub_04(d) | Accompanied by 3 allies 11186 | -6/Hub_04(d) | Discovered exit to Factory (range 5) 11262 | -6/Hub_04(d) | Garrison activated, responded to threat 11330 | -6/Hub_04(d) | Discovered exit to Factory (range 11) 11476 | -6/Hub_04(d) | Discovered exit to Factory (range 15) 11608 | -6/Hub_04(d) | Network Hub disabled 11624 | -6/Hub_04(d) | Spotted Lightning 11636 | -6/Hub_04(d) | Spotted Lightning 11665 | -6/Hub_04(d) | System corruption reached 10% 11667 | -6/Hub_04(d) | Entered Factory 11667 | -5/Factory | Evolved 2 slots: Power x1, Utility x1 11668 | -5/Factory | Identified exit to Upper Caves 12215 | -5/Factory | Loaded intel: 8 recycling unit locations 12580 | -5/Factory | Scraphulk reinforcements arrived 12658 | -5/Factory | Lost 3 parts (1p1u1w) 12798 | -5/Factory | Cargo convoy interrupted 12867 | -5/Factory | First assault squad dispatched 12869 | -5/Factory | Lost 14 parts (3p2n3u6w) 12900 | -5/Factory | Released all parts (6) 12904 | -5/Factory | Core integrity fell below 50% 12931 | -5/Factory | Lost 5 parts (2p1n2u) 13029 | -5/Factory | Spotted B-75 Beast 13056 | -5/Factory | Scraphulk reinforcements arrived 13065 | -5/Factory | Core integrity fell below 20% 13109 | -5/Factory | Build established: Mutant 13478 | -5/Factory | Lost 4 parts (1p3u) 13495 | -5/Factory | Manually triggered Chute Trap 13495 | -5/Factory | Sucked down chute 13495 | -5/Factory | Entered Waste 13496 | -5/Waste | Joined by Warlord forces that had cleared the area 13564 | -5/Waste | Discovered new exit (range 14) 13756 | -5/Waste | Identified exit to Factory 13777 | -5/Waste | Entered Factory 13777 | -5/Factory | Accompanied by 20 allies 13780 | -5/Factory | Identified exit to DSF 13780 | -5/Factory | Entered DSF 13780 | -5/DSF | Accompanied by 20 allies 13807 | -5/DSF | Additional patrols routed to DSF 13829 | -5/DSF | Lost 4 allies 13844 | -5/DSF | Discovered new exit (range 14) 13929 | -5/DSF | Sterilization system engaged 13944 | -5/DSF | Found Active Sensor Suite 13949 | -5/DSF | Ambient heat levels rising (+10) 13964 | -5/DSF | Ambient heat levels rising (+10) 13979 | -5/DSF | Ambient heat levels rising (+10) 13988 | -5/DSF | Identified exit to Factory 13994 | -5/DSF | Ambient heat levels rising (+10) 14002 | -5/DSF | Entered Factory 14002 | -4/Factory | Accompanied by 14 allies 14002 | -4/Factory | Evolved 2 slots: Utility x2 14113 | -4/Factory | Loaded intel: 8 recycling unit locations 14217 | -4/Factory | Build established: Tank 14242 | -4/Factory | Lost 7 allies 14296 | -4/Factory | Fabricated Huge Storage Unit (x1) 14423 | -4/Factory | Scrapoid reinforcements arrived 14502 | -4/Factory | First assault squad dispatched 14521 | -4/Factory | Lost 3 allies 14523 | -4/Factory | High security lockdown imminent 14566 | -4/Factory | Released all parts (17) 14584 | -4/Factory | Destroyed 8 combat bots 14593 | -4/Factory | Lost 5 allies 14603 | -4/Factory | High security lockdown engaged 14687 | -4/Factory | Discovered new exit (range 15) 14696 | -4/Factory | Identified exit to Research 14696 | -4/Factory | Entered Research 14696 | -3/Research | Evolved 2 slots: Propulsion x2 14697 | -3/Research | Identified exit to Research 14697 | -3/Research | Identified exit to Testing 14711 | -3/Research | Identified exit to Armory 14763 | -3/Research | Found Fusion Bomb Launcher 14896 | -3/Research | Revision forces began assault on 0b10 14914 | -3/Research | Discovered exit to Research (range 15) 15000 | -3/Research | Met up with Revision 17++ 15005 | -3/Research | Build established: Hacker-Scout 15155 | -3/Research | Loaded intel: 5 recycling unit locations 15279 | -3/Research | Discovered exit to Research (range 10) 15301 | -3/Research | Entered Testing 15316 | -3/Testing | Found Prototype Energy Gun 15316 | -3/Testing | Identified Hyp. EM Gauss Rifle 15327 | -3/Testing | Found Prototype Device 15327 | -3/Testing | Identified Exp. Hardlight Generator 15346 | -3/Testing | Found Portable AFG 15372 | -3/Testing | Found Prototype Device 15372 | -3/Testing | Identified Adv. Kinecellerator 15385 | -3/Testing | Found Prototype Device 15385 | -3/Testing | Identified Exp. Thermal Defense Suite 15395 | -3/Testing | Entered Research 15395 | -2/Research | Evolved 2 slots: Utility x2 15406 | -2/Research | Identified exit to Quarantine 15412 | -2/Research | Identified exit to Access 15417 | -2/Research | Loaded intel: 5 recycling unit locations 15451 | -2/Research | Entered Quarantine 15471 | -2/Quarantine | Found Alien Artifact 15473 | -2/Quarantine | Discovered exit to Access (range 16) 15528 | -2/Quarantine | Central database locked down 15552 | -2/Quarantine | Spotted Fortress 15564 | -2/Quarantine | Discovered new exit (range 6) 15564 | -2/Quarantine | Discovered new exit (range 6) 15565 | -2/Quarantine | Identified exit to Protoforge 15565 | -2/Quarantine | Identified exit to Section 7 15566 | -2/Quarantine | Entered Protoforge 15582 | -2/Protoforge | Superfortress began startup sequence 15617 | -2/Protoforge | Build established: Hacker-Ninja 15644 | -2/Protoforge | Spotted Hotshot 15732 | -2/Protoforge | Spotted AP7-3 15733 | -2/Protoforge | Spotted AP7-3 15740 | -2/Protoforge | Spotted Decapitator 15740 | -2/Protoforge | Spotted Decapitator 15747 | -2/Protoforge | UFD initiated attack on Protoforge 15747 | -2/Protoforge | Loaded intel: 3 recycling unit locations 15769 | -2/Protoforge | Spotted EXE-6 15769 | -2/Protoforge | Spotted EXE-6 15779 | -2/Protoforge | Scrapoids reinforcements arrived? 15809 | -2/Protoforge | Optimus greeted in Protoforge 15814 | -2/Protoforge | Found Prototype Processor 15814 | -2/Protoforge | Identified Exp. Core Analyzer 15817 | -2/Protoforge | Found Prototype Device 15817 | -2/Protoforge | Identified Exp. Kinecellerator 15820 | -2/Protoforge | Found Prototype Ballistic Gun 15820 | -2/Protoforge | Identified Cep. XC Strikerail 15827 | -2/Protoforge | Fabricated Enh. Hardcell Cannon? 15829 | -2/Protoforge | Fabricated Hvy. Shield Leg? 15835 | -2/Protoforge | Spotted EXE-6 15835 | -2/Protoforge | Spotted EXE-6 15842 | -2/Protoforge | Fabricated G-67 Veteran? 15902 | -2/Protoforge | Found Prototype Device 15902 | -2/Protoforge | Identified Exp. Trap Extractor 15967 | -2/Protoforge | Spotted Striker 15969 | -2/Protoforge | Spotted Striker 15973 | -2/Protoforge | Spotted Decapitator 15976 | -2/Protoforge | Allies destroyed Decapitator 15984 | -2/Protoforge | UFD reported confirmed Drillbomb installation 16000 | -2/Protoforge | Spotted B-90 Cyclops 16033 | -2/Protoforge | Lost 7 allies 16042 | -2/Protoforge | Spotted Executioner 16042 | -2/Protoforge | Spotted Executioner 16051 | -2/Protoforge | Found Prototype Device 16051 | -2/Protoforge | Identified Cep. Weapon Articulator 16056 | -2/Protoforge | Found Prototype Storage 16056 | -2/Protoforge | Identified Cep. NT7 Matterbank 16060 | -2/Protoforge | Found Prototype Storage 16060 | -2/Protoforge | Identified Cep. Chromion Battery 16063 | -2/Protoforge | Spotted Striker 16064 | -2/Protoforge | Found Prototype Device 16064 | -2/Protoforge | Identified Exp. System Purifier 16082 | -2/Protoforge | Identified Transdimensional Reconstructor 16082 | -2/Protoforge | Warped through subspace 16103 | -2/Protoforge | Spotted EXE-6 16105 | -2/Protoforge | Core integrity fell below 50% 16114 | -2/Protoforge | Core integrity fell below 20% 16125 | -2/Protoforge | Found Prototype Device 16125 | -2/Protoforge | Identified Crosscalibrator 16131 | -2/Protoforge | Spotted Immortal 16131 | -2/Protoforge | Spotted Immortal 16133 | -2/Protoforge | Spotted Decapitator 16133 | -2/Protoforge | Spotted Decapitator 16133 | -2/Protoforge | Spotted Decapitator 16140 | -2/Protoforge | Destroyed by Striker with Plasma Lance Last Messages --------------- Cep. Smart ZDS Cep. Energy Mantle Cep. Core Shell Cep. Variable Chargecaster Cep. Chromion Battery Cep. Cloak Mesh Cep. Countertargeting System Cep. NT7 Matterbank Cep. Plasma Driver Cep. Rapid Grenade Launcher 16129_ Imp. Diametric Drive destroyed. 16129_ Discarded Exp. System Purifier. 16135_ Decapitator springs to life. 16135_ Plasma Lance destroyed. 16136_ Slammed into Decapitator. 16136_ Decapitator springs to life. 16136_ Imp. Hacking Suite severed. 16137_ Slammed into Decapitator. 16137_ Destabilizing: System interference. 16137_ Adv. Visual Processing Unit temporarily disabled. Map ----- +----------------------------------------------------+ | ?????????????????????????????????????????????????? | | ?????????????????????????????????????????????????? | | ?????????????????????????????????????????????????? | | ?????????????????????????????????????????????????? | | ?????????????????????????????????????????????????? | | ?????????????????????????????????????????????????? | | ?????????????????????????????????????????????????? | | ?????????????????????????????????????????????????? | | ?????????????????????????????????????????????????? | | ?????????????????????????????????????????????????? | | ??????????????????????? ??????????????????????? | | ?????????????????????? ??????????????????????? | | ?????????????????????? ??????????????????????? | | ?????????????????????? ??????????????????????? | | ?????????????????????? ??????????????????????? | | ??????????????????????? ??????????????????????? | | ??????????????????????? ??????????????????????? | | ??????????????????????? ??????????????????????? | | ??????????????????????? #??????????????????????? | | ???????????????????????# #??????????????????????? | | ???????????????????????# #????????????????????? | | ???????????????????????# #????????????????????? | | ???????????????????????# #????????????????????? | | ???????????????????????# #????????????????????" | | ???????????????????????# #????????????????????" | | ???????????????????????# @###??????????????????" | | ???????????????????????# K "#??????????????????" | | ???????????????????????# c "#??????????????????" | | ???????????????????????# c "#??????????????????" | | ???????????????????????#c "#??????????????????# | | ???????????????????????# ###??????????????????# | | ???????????????????????# #????????????????????# | | ???????????????????????# #????????????????????# | | ???????????????????????# #????????????????????# | | ???????????????????????# #????????????????????# | | ???????????????????????# #????????????????????# | | ????????????# ######### ###################### | | ????????????# | | ????????????# | | ????????????# | | ????????????# ####################++############# | | ???????????????????????????????# " "#????????? | | ???????????????????????????????# ! !"#????????? | | ???????????????????????????????# !"#????????? | | ???????????????????????????????#" !"#????????? | | ???????????????????????????????#" T" ##????????? | | ???????????????????????????????#" "" "#????????? | | ???????????????????????????????#" """" "#????????? | | ???????????????????????????????#""""""""#????????? | | ???????????????????????????????##########????????? | +----------------------------------------------------+ Best States ------------- Heat Dissipation 97 Coolant Potential 65 Energy Generation 45 Energy Capacity 865 Matter Stores 300 Matter Capacity 300 Sight Range 22 Robot Scan Range 20 Terrain Scan Range 30 Terrain Scan Density 1210 Cloak Strength 2 Armor Coverage 900 Power Shielding 66 Evasion (%) 67 Melee Accuracy 8 Launcher Accuracy 30 Recoil Reduction 4 Particle Charging 25 Kinecelleration 40 Force Boost 20 Offensive Hacking 34 Defensive Hacking 24 Authchip Count 3 Item Schematics ----------------- Hcp. Storage Unit | -9/Recycling | Hacked Huge Storage Unit | -9/Recycling | Hacked Robot Schematics ------------------ G-67 Veteran | -2/Quarantine | Hacked Fabricated ------------ Huge Storage Unit | x1 | -4/Factory | Authchip Enh. Hardcell Cannon | x2 | -2/Protoforge | Preloaded Hvy. Shield Leg | x1 | -2/Protoforge | Preloaded G-67 Veteran | x3 | -2/Protoforge Repaired ---------- Nothing Alien Tech Used ----------------- Transdimensional Reconstructor Achievements -------------- Just Shoot The Terminal Challenges ------------ None Game ------ Seed TrapAngularCalibrator Manual? 0 Play Time 03:02:52 Cumulative 353.9 hours Start 2025.06.23 @ 07:44:52 End 2025.06.23 @ 13:28:43 Sessions 3 Manual Loads 0 Difficulty Rogue Special Mode None Game No. 243 Rogue 243 Adventurer 0 Explorer 0 Win Type - Total 27 Types 21/0/4/2/0/0/0/0/0/0 Lore% 90 Gallery% 79 Achievement% 67 Wizard Run 0 Options --------- Layout 0 ASCII 1 Keyboard 1 Movement Arrows Keybinds 0 Fullscreen 2 Font 18/Terminus Map View 76x50 Zoom Use 0% Tactical HUD 1 Map Filters NONE Filters NONE Steam 1 RUN: 5dc1cc0f-b78f-432b-bbbd-d2d7050940b7